Workbook

Sheet Annual Burden Estimate
A1: INSTRUCTIONS: Use this form when a single information collection document involves multiple reporting and recordkeeping requirements. | I1: TITLE OF INFORMATION COLLECTION REQUEST | O1: OMB NO.
I3: National Woodland Owner Survey | O3: 0596-0078
O6: DATE PREPARED:
O8: 2015-01-15
A10: IDENTIFICATION OF REPORTING OR RECORDKEEPING REQUIREMENT | G10: ANNUAL BURDEN ESTIMATE
I12: ESTIMATED RESPONSES | M12: NON-RESPONSES | Q12: TOTAL
P14: TOTAL
A15: FORMS NO (S) | G15: ANNUAL | H15: SAMPLE | I15: NUMBER OF | J15: TOTAL ANNUAL | K15: HOURS | L15: TOTAL | M15: NUMBER OF | N15: TOTAL ANNUAL | O15: HOURS | P15: HOURS | Q15: TOTAL | R15: COST | S15: TOTAL
A16: (If "none" | B16: DESCRIPTION | G16: FREQUENCY | H16: SIZE | I16: RESPONDENTS | J16: RESPONSES | K16: PER | L16: HOURS | M16: NON- | N16: NUMBER OF | O16: PER | P16: OF | Q16: BURDEN | R16: PER | S16: COST
A17: so state) | G17: OF | J17: (Col. C x E) | K17: RESPONSE | L17: OF RESPONSE | M17: RESPONDENTS | N17: NON-RESPONSES | O17: NON-RESPONSE | P17: NON-RESPONSE | Q17: HOURS | R17: HOUR*
G18: RESPONSE | L18: (Col. F xG) | N18: (Col. C x I) | P18: (Col. J x K) | Q18: (Col. H + L) | S18: (Col. M x N)
A19: (A) | B19: (B) | G19: (C) | H19: (D) | I19: (E) | J19: (F) | K19: (G) | L19: (H) | M19: (I) | N19: (J) | O19: (K) | P19: (L) | Q19: (M) | R19: (N) | S19: (O)
B20: NWOS Surveys (NWOS Long; NWOS Short +Science Modules; NWOS Short + State)
A21: None | B21: Pre-Notice letter | G21: 1 | H21: 8,229 | I21: 6,583 | J21: =SUM(I21*G21) -> 6,583 | K21: 0.03 | L21: =SUM(J21*K21) -> 217.24 | M21: 1,646 | N21: =G21*M21 -> 1,646 | O21: 0.03 | P21: =SUM(N21*O21) -> 54.32 | Q21: =L21+P21 -> 271.56 | R21: $21.29 | S21: =Q21*R21 -> $5,781.45
A22: None | B22: First Mailing Questionnaire & Cover Letter | G22: 1 | H22: 8,229 | I22: =0.6*(I21-I26-I25) -> 2,962 | J22: 2,962 | K22: 0.42 | L22: 1,244.19 | M22: =H22-I22 -> 5,267 | N22: 5,267 | O22: 0.03 | P22: 173.80 | Q22: =L22+P22 -> 1,417.99 | R22: $21.29 | S22: =Q22*R22 -> $30,188.93
A23: None | B23: Reminder / Thank You Letter | G23: 1 | H23: 8,229 | I23: =I22 -> 2,962 | J23: 2,962 | K23: 0.03 | L23: 97.76 | M23: =M22 -> 5,267 | N23: 5,267 | O23: 0.03 | P23: 173.80 | Q23: 271.56 | R23: $21.29 | S23: $5,781.45
A24: None | B24: Second Questionnaire Mailing & Cover Letter | G24: 1 | H24: =I24+M24 -> 5,267 | I24: =(I21-I26-I25)-I22 -> 1,975 | J24: 1,975 | K24: 0.42 | L24: 829.46 | M24: =H21-I22-I24 -> 3,292 | N24: 3,292 | O24: 0.03 | P24: 108.63 | Q24: 938.09 | R24: $21.29 | S24: $19,971.85
A25: None | B25: Online Survey | G25: 1 | H25: =I25 -> 329 | I25: =0.05*I21 -> 329 | J25: 329 | K25: 0.42 | L25: 138.24 | M25: 0 | N25: 0 | O25: 0.03 | P25: =SUM(N25*O25) -> 0.00 | Q25: =L25+P25 -> 138.24 | R25: $22.29 | S25: =Q25*R25 -> $3,081.44
A26: None | B26: Telephone Survey | G26: 1 | H26: =(0.2*I21)*2 -> 2,633 | I26: =0.2*I21 -> 1,317 | J26: 1,317 | K26: 0.42 | L26: 552.97 | M26: =0.2*I21 -> 1,317 | N26: 1,317 | O26: 0.03 | P26: 43.45 | Q26: 596.42 | R26: $21.29 | S26: $12,697.78
B27: NWOS Urban Survey
A28: None | B28: Pre-Notice letter | G28: 1 | H28: =SUM(I28,M28) -> 416 | I28: 333 | J28: =SUM(I28*G28) -> 333 | K28: 0.03 | L28: =SUM(J28*K28) -> 10.99 | M28: 83 | N28: =G28*M28 -> 83 | O28: 0.03 | P28: =SUM(N28*O28) -> 2.74 | Q28: 13.73 | R28: $21.29 | S28: $292.27
A29: None | B29: First Mailing Questionnaire & Cover Letter | G29: 1 | H29: =H28 -> 416 | I29: =0.6*(I28-I35-I33-I34-I32) -> 120 | J29: 120 | K29: 0.42 | L29: 50.26 | M29: =H29-I29 -> 296 | N29: 296 | O29: 0.03 | P29: 9.78 | Q29: 60.04 | R29: $21.29 | S29: $1,278.26
A30: None | B30: Reminder / Thank You Letter | G30: 1 | H30: =SUM(I30,M30) -> 416 | I30: =I29 -> 120 | J30: 120 | K30: 0.03 | L30: 3.95 | M30: =M29 -> 296 | N30: 296 | O30: 0.03 | P30: 9.78 | Q30: 13.73 | R30: $21.29 | S30: $292.27
A31: None | B31: Second Questionnaire Mailing & Cover Letter | G31: 1 | H31: 296 | I31: =(I28-I35-I33-I34-I32)-I29 -> 80 | J31: 80 | K31: 0.42 | L31: 33.51 | M31: =H28-I29-I31 -> 217 | N31: 217 | O31: 0.03 | P31: 7.15 | Q31: 40.65 | R31: $21.29 | S31: $865.52
A32: None | B32: Online Survey | G32: 1 | H32: =0.05*I28 -> 17 | I32: 17 | J32: =SUM(I32*G32) -> 17 | K32: 0.42 | L32: 7.14 | M32: 0 | N32: =G32*M32 -> 0 | O32: 0.03 | P32: =SUM(N32*O32) -> 0.00 | Q32: =L32+P32 -> 7.14 | R32: $22.29 | S32: =Q32*R32 -> $159.15
A33: None | B33: Face to Face Interview | G33: 1 | H33: 41 | I33: =0.1*I28 -> 33 | J33: 33 | K33: 0.42 | L33: =SUM(J33*K33) -> 13.99 | M33: 8 | N33: 8 | O33: 0.03 | P33: =SUM(N33*O33) -> 0.26 | Q33: =L33+P33 -> 14.25 | R33: $21.29 | S33: =Q33*R33 -> $303.38
A34: None | B34: Door Hanger Survey and online survey | G34: 1 | H34: 20 | I34: =0.05*I28 -> 17 | J34: 17 | K34: 0.42 | L34: 6.99 | M34: 3 | N34: 3 | O34: 0.03 | P34: 0.10 | Q34: 7.09 | R34: $21.29 | S34: $150.99
A35: None | B35: Telephone Survey | G35: 1 | H35: 133 | I35: =0.2*I28 -> 67 | J35: 67 | K35: 0.42 | L35: 27.97 | M35: =0.2*I28 -> 67 | N35: 67 | O35: 0.03 | P35: 2.20 | Q35: 30.17 | R35: $21.29 | S35: $642.32
B36: NWOS Corporate Survey
A37: None | B37: Pre-Notice letter | G37: 1 | H37: 54 | I37: 43 | J37: =SUM(I37*G37) -> 43 | K37: 0.03 | L37: 1.42 | M37: 11 | N37: =G37*M37 -> 11 | O37: 0.03 | P37: 0.36 | Q37: 1.78 | R37: $21.29 | S37: $37.94
A38: None | B38: Cover Letter & First Electronic Survey | G38: 1 | H38: =H37 -> 54 | I38: =0.6*(I37-I41) -> 21 | J38: =SUM(I38*G38) -> 21 | K38: 0.50 | L38: 10.32 | M38: =H38-I38 -> 33 | N38: =G38*M38 -> 33 | O38: 0.03 | P38: 1.10 | Q38: 11.42 | R38: $21.29 | S38: $243.15
A39: None | B39: Reminder / Thank You Letter | G39: 1 | H39: =SUM(I39,M39) -> 54 | I39: =I38 -> 21 | J39: =SUM(I39*G39) -> 21 | K39: 0.03 | L39: 0.68 | M39: =M38 -> 33 | N39: =G39*M39 -> 33 | O39: 0.03 | P39: 1.10 | Q39: 1.78 | R39: $21.29 | S39: $37.94
A40: None | B40: Cover Letter & Second Electronic Survey | G40: 1 | H40: 33 | I40: =(I37-I41)-I38 -> 14 | J40: =SUM(I40*G40) -> 14 | K40: 0.50 | L40: 6.88 | M40: =H37-I38-I40 -> 20 | N40: =G40*M40 -> 20 | O40: 0.03 | P40: 0.65 | Q40: 7.53 | R40: $21.29 | S40: $160.25
A41: None | B41: Follow-up Telephone Call | G41: 1 | H41: 17 | I41: =0.2*I37 -> 9 | J41: =SUM(I41*G41) -> 9 | K41: 0.50 | L41: 4.30 | M41: =0.2*I37 -> 9 | N41: =G41*M41 -> 9 | O41: 0.03 | P41: 0.28 | Q41: 4.58 | R41: $21.29 | S41: $97.59
B42: NWOS Public Lands Survey
A43: None | B43: Pre-Notice letter | G43: 1 | H43: 1,083 | I43: 866 | J43: =SUM(I43*G43) -> 866 | K43: 0.03 | L43: 28.58 | M43: 216 | N43: =G43*M43 -> 216 | O43: 0.03 | P43: 7.13 | Q43: 35.71 | R43: $21.29 | S43: $760.18
A44: None | B44: Cover Letter & First Electronic Survey | G44: 1 | H44: =H43 -> 1,083 | I44: =0.6*(I43-I47) -> 416 | J44: =SUM(I44*G44) -> 416 | K44: 0.25 | L44: 103.92 | M44: =H44-I44 -> 667 | N44: 667 | O44: 0.03 | P44: 22.02 | Q44: 125.94 | R44: $21.29 | S44: $2,681.30
A45: None | B45: Reminder / Thank You Letter | G45: 1 | H45: =SUM(I45,M45) -> 1,083 | I45: =I44 -> 416 | J45: =SUM(I45*G45) -> 416 | K45: 0.03 | L45: 13.72 | M45: =M44 -> 667 | N45: 667 | O45: 0.03 | P45: 22.02 | Q45: 35.74 | R45: $21.29 | S45: $760.88
A46: None | B46: Cover Letter & Second Electronic Survey | G46: 1 | H46: 667 | I46: =(I43-I47)-I44 -> 277 | J46: =SUM(I46*G46) -> 277 | K46: 0.25 | L46: 69.28 | M46: =H43-I44-I46 -> 390 | N46: 390 | O46: 0.03 | P46: 12.88 | Q46: 82.16 | R46: $21.29 | S46: $1,749.11
A47: None | B47: Follow-up Telephone Call | G47: 1 | H47: 346 | I47: =0.2*I43 -> 173 | J47: =SUM(I47*G47) -> 173 | K47: 0.25 | L47: 43.30 | M47: =0.2*I43 -> 173 | N47: 173 | O47: 0.03 | P47: 5.72 | Q47: 49.02 | R47: $21.29 | S47: $1,043.54
B48: NWOS Focus Groups
A49: None | B49: Phone call screener guide | G49: 1 | H49: 450 | I49: 90 | J49: =SUM(I49*G49) -> 90 | K49: =10/60 -> 0.17 | L49: 15.00 | M49: =H49-I49 -> 360 | N49: 360 | O49: =10/60 -> 0.17 | P49: 60.00 | Q49: 75.00 | R49: $21.29 | S49: $1,596.75
A50: None | B50: Confirmation letter | G50: 1 | H50: 90 | I50: 90 | J50: =SUM(I50*G50) -> 90 | K50: 0.03 | L50: 2.97 | M50: 0 | N50: 0 | O50: 0.00 | P50: 0.00 | Q50: 2.97 | R50: $21.29 | S50: $63.23
A51: None | B51: Focus Group Session | G51: 1 | H51: 90 | I51: 90 | J51: =SUM(I51*G51) -> 90 | K51: 2.00 | L51: 180.00 | M51: 0 | N51: 0 | O51: 0.00 | P51: 0.00 | Q51: 180.00 | R51: $21.29 | S51: $3,832.20
B52: NWOS Cognitive Interviews
A53: None | B53: Phone call screener guide | G53: 1 | H53: =10/0.2 -> 50 | I53: 10 | J53: =SUM(I53*G53) -> 10 | K53: 0.08 | L53: 0.80 | M53: =H53-I53 -> 40 | N53: =G53*M53 -> 40 | O53: 0.17 | P53: 6.80 | Q53: 7.60 | R53: $21.29 | S53: $161.80
A54: None | B54: Confirmation letter | G54: 1 | H54: 10 | I54: 10 | J54: =SUM(I54*G54) -> 10 | K54: 0.03 | L54: 0.33 | M54: 0 | N54: =G54*M54 -> 0 | O54: 0.00 | P54: 0.00 | Q54: 0.33 | R54: $21.29 | S54: $7.03
A55: None | B55: Cognitive Interview Session | G55: 1 | H55: 10 | I55: 10 | J55: =SUM(I55*G55) -> 10 | K55: 1.00 | L55: =SUM(J55*K55) -> 10.00 | M55: 0 | N55: =G55*M55 -> 0 | O55: 0.00 | P55: =SUM(N55*O55) -> 0.00 | Q55: 10.00 | R55: $21.29 | S55: $212.90
B56: SUBTOTAL | J56: =SUM(J20:J55) -> 19,468 | L56: =SUM(L20:L55) -> 3,726.15 | N56: =SUM(N20:N55) -> 20,377 | P56: =SUM(P20:P55) -> 726.05 | Q56: =SUM(Q20:Q55) -> 4,452.21 | S56: =SUM(S20:S55) -> $94,932.83
B57: TOTAL OF ALL PAGES | J57: =J56 -> 19,468 | L57: =L56 -> 3,726.15 | N57: =N56 -> 20,377 | P57: =P56 -> 726.05 | Q57: =Q56 -> 4,452.21 | S57: =(S56) -> $94,932.83
A58: TOTAL - COLUMNS "F" AND "J" = OMB 831, 13 b; COLUMNS "H" AND "L" = OMB 831, 13c | J58: =SUM(J57+N57) -> 39,846 | L58: =SUM(L57+P57) -> 4,452.21 | Q58: =SUM(Q57+U57) -> 4,452.2
A59: ** Based on the U.S. Census Bureau’s 2010 Statistical Abstract “Mean hourly earnings and weekly hours by selected characteristics” (www.census.gov/compendia/statab/cats/labor_force_employment_earnings.html; last accessed on 6-Jan-10)

Sheet Total Sample Size
A1: RESPONDENTS | I1: Total Sample Size
A2: (a) | B2: (b) | C2: (c) | D2: (d) | E2: (e) | F2: (f) | G2: (g)
A3: Description of the Collection Activity | B3: Form Number | C3: Number of Respondents | D3: Number of responses annually per Respondent | E3: Total annual responses | F3: Estimate of Burden Hours per response | G3: Total Annual Burden Hours
E4: (c x d) | G4: (e x f) | I4: (non-respond + response)
A5: Self-administered questionnaire | B5: NWOS 6.0 Long; NWOS 6.0 Short + Science Module; NWOS 6.0 Short + State | C5: 6,583 | D5: 1 | E5: =C5*D5 -> 6,583 | F5: 0.42 | G5: =E5*F5 -> 2,765 | I5: =C5/0.8 -> 8,229
A6: Self-administered questionnaire | B6: NWOS 6.0 Urban | C6: 333 | D6: 1 | E6: =C6*D6 -> 333 | F6: 0.42 | G6: =E6*F6 -> 140 | I6: =C6/0.8 -> 416
A7: Self-administered questionnaire | B7: NWOS 6.0 Corporate | C7: 43 | D7: 1 | E7: 43 | F7: 0.50 | G7: 22 | I7: 54
A8: Self-administered questionnaire | B8: NWOS 6.0 Public Lands | C8: 866 | D8: 1 | E8: 866 | F8: 0.25 | G8: 217 | I8: 1,083
A9: Focus groups | B9: NWOS 6.0 Focus Group Guide | C9: 90 | D9: 1 | E9: 90 | F9: 2 | G9: 180 | I9: 113
A10: Cognitive interviews | B10: NWOS 6.0 Cognitive Interview Guide | C10: 10 | D10: 1 | E10: 10 | F10: 1 | G10: 10 | I10: 13
A11: Totals | B11: --- | C11: =SUM(C5:C10) -> 7,925 | D11: --- | E11: --- | F11: --- | G11: =SUM(G5:G10) -> 3,333 | I11: 9,906
A13: NON-RESPONDENTS
A14: Description of the Collection Activity | B14: Form Number | C14: Number of Respondents | D14: Number of responses annually per Respondent | E14: Total annual responses | F14: Estimate of Burden Hours per response | G14: Total Annual Burden Hours
E15: (c x d) | G15: (e x f)
A16: Self-administered questionnaire | B16: NWOS 6.0 Long; NWOS 6.0 Short + Science Module; NWOS 6.0 Short + State | C16: =I5-C5 -> 1,646 | D16: 1 | E16: =C16*D16 -> 1,646 | F16: =2/60 -> 0.03 | G16: =E16*F16 -> 55
A17: Self-administered questionnaire | B17: NWOS 6.0 Urban | C17: 83 | D17: 1 | E17: =C17*D17 -> 83 | F17: 0.42 | G17: =E17*F17 -> 35
A18: Self-administered questionnaire | B18: NWOS 6.0 Corporate | C18: 11 | D18: 1 | E18: 11 | F18: 0.50 | G18: 5
A19: Self-administered questionnaire | B19: NWOS 6.0 Public Lands | C19: 217 | D19: 1 | E19: 217 | F19: 0.25 | G19: 54
A20: Focus groups | B20: NWOS 6.0 Focus Group Guide | C20: 23 | D20: 1 | E20: 23 | F20: 2 | G20: 45
A21: Cognitive interviews | B21: NWOS 6.0 Cognitive Interview Guide | C21: 3 | D21: 1 | E21: 3 | F21: 1 | G21: 3
A22: TOTALS | B22: --- | C22: =SUM(C16:C21) -> 1,981 | D22: --- | E22: --- | F22: --- | G22: =SUM(G16:G21) -> 197
A24: TOTAL PRIVATE | C24: =SUM(C5:C7,C9:C10) -> 7,059
A25: TOTAL PUBLIC | C25: =C8 -> 866

Sheet NOTES
A1: NOTES FOR RESPONDENTS TABLE
A2: Number of respondants estimated by:
A4: NWOS long, short, sci mods, and state: | B4: Total States: | C4: 52 | D4: Including East and West Texas and Oklahoma
B5: Per State for 3 Years: | C5: 250
B6: Total: | C6: =C4*C5 -> 13,000
B8: Total States for Additional: | C8: 27 | D8: States responded to the desire to the potential desire to intensify for 3 years.
B9: Additional Per State for 3 years: | C9: 250
B10: Total Additional: | C10: =C8*C9 -> 6,750
B12: TOTAL: | C12: =C6+C10 -> 19,750
B13: Total per Year: | C13: =C12/3 -> 6,583
A15: Urban | B15: Total Estimated Cities: | C15: 10
B16: # Respondents per City: | C16: 100
B17: Total Respondents for 3 years: | C17: =C15*C16 -> 1,000
B18: Total per Year: | C18: =C17/3 -> 333
A20: Corporate | B20: Corporate >250,000 acres = 75 | C20: 75
A21: *Ran estimate of corporate ownerships with >250,000 acres in the United States. | B21: Round up to: | C21: 130
B22: Total per Year: | C22: =C21/3 -> 43
A24: Public lands | B24: Total States: | C24: 52
B25: Total per State: | C25: 50
B26: Total for 3 Years: | C26: =C24*C25 -> 2,600
B27: Total per Year: | C27: =C26/3 -> 867
A29: Focus groups | B29: Urban: | C29: 8
B30: Science Modules Total: | C30: 10 | D30: 4 for each of the 5 science modules; 2 science modules per Focus Group
B31: Caribean Islands: | C31: 8
B32: Pacific Islands: | C32: 8
B34: Total Focus Groups: | C34: =SUM(C29:C32) -> 34
B35: People per Focus Group: | C35: 8
B36: # People per Focus Groups: | C36: =C34*C35 -> 272
B37: Total respondents per Year: | C37: =C36/3 -> 91
A39: Cognitive interviews | B39: Total: | C39: 30
B40: Total per Year: | C40: =C39/3 -> 10

Sheet Costs
A1: (a) | B1: (b) | C1: (c) | D1: (d)
A2: Description of the Collection Activity | B2: Estimated Total Annual Burden on Respondents (Hours) | C2: Estimated Average Income per Hour* | D2: Estimated Cost to Respondents
A3: Self-administered questionnaire | B3: 3,143 | C3: $21.29 | D3: =B3*OLE_LINK1 -> $66,914
A4: Focus groups | B4: 180 | C4: $21.29 | D4: =B4*OLE_LINK1 -> $3,832
A5: Cognitive Interviews | B5: 10 | C5: $21.29 | D5: =B5*OLE_LINK1 -> $213
A6: TOTALS | B6: =SUM(B3:B5) -> 3,333 | C6: --- | D6: =SUM(D3:D5) -> $70,960
A7: Need help thinking thru the focus group burden and amounts
